bitfinex-derivatives/quotes_ETHF0:USTF0_20250810
["timestamp","ask_amount","ask_price","bid_price","bid_amount"]
[1754790067638,0.5924,4320.2,4319.7,0.57]
[1754790067845,0.5924,4320.1,4319.8,0.89885918]
[1754790068046,0.991,4320.0,4319.9,1.30665918]
[1754790068250,1.5421,4320.0,4319.9,1.30665918]
[1754790068745,5.04771187,4320.0,4319.9,0.32885918]
[1754790068946,4.58482187,4320.0,4319.9,1.30665918]
[1754790069146,0.5924,4320.0,4319.9,1.87665918]
[1754790069347,3.2078,4320.6,4320.0,0.46289]
[1754790069543,0.5924,4320.2,4320.1,1.30665918]
[1754790069936,0.3986,4320.3,4320.1,0.32885918]
[1754790070140,0.991,4320.3,4320.2,1.30665918]
[1754790072042,1.5421,4320.3,4320.2,1.30665918]
[1754790073643,1.5421,4320.3,4320.2,0.32885918]
[1754790073849,4.61951417,4320.3,4320.2,0.32885918]
[1754790074047,5.08237417,4320.3,4320.2,0.32885918]
[1754790074653,1.2133,4320.2,4319.1,0.57]
[1754790074849,0.46295,4319.5,4318.9,0.9778]
[1754790075148,1.2133,4319.2,4319.0,0.407]
[1754790075452,0.5924,4319.1,4319.0,0.9778]
[1754790075753,1.2133,4318.9,4318.6,0.9778]
[1754790075954,1.2133,4318.8,4318.4,0.46305]
[1754790076147,1.2133,4318.8,4318.6,1.5478]
[1754790076348,0.5924,4318.8,4318.7,2.01083]
[1754790076950,0.5924,4318.8,4318.7,1.5478]
[1754790078453,0.46306,4318.4,4318.3,3.2078]
[1754790078748,1.2133,4317.9,4317.3,0.407]
[1754790078948,1.2133,4317.9,4317.3,0.87017]
[1754790079151,2.9849922,4317.8,4317.3,0.46317]
[1754790079348,1.1435,4317.7,4317.4,1.5478]
[1754790079549,0.5924,4317.6,4317.5,0.9778]
[1754790079750,1.2133,4317.6,4317.5,0.9778]
[1754790079950,3.04605095,4317.7,4317.2,3.2078]
[1754790080151,1.2133,4317.4,4317.2,4.1856]
[1754790080451,1.2133,4317.4,4317.3,0.9778]
[1754790080657,1.2133,4317.4,4317.3,1.44098]
[1754790081045,1.1435,4317.4,4317.3,1.44098]
[1754790081250,0.46308,4318.2,4317.7,0.9778]
[1754790081451,3.2078,4317.8,4317.4,0.46317]
[1754790081748,3.8002,4317.8,4317.7,0.57]
[1754790082153,4.3513,4317.8,4317.7,1.5478]
[1754790082353,4.4211,4317.8,4316.8,3.2078]
[1754790082551,1.2133,4317.7,4316.4,1.5478]
[1754790082753,0.46319,4317.3,4316.4,1.5478]
[1754790082952,1.2133,4316.8,4316.4,1.1408]
[1754790083154,1.2133,4316.2,4315.3,0.407]
[1754790083354,0.0698,4316.2,4315.4,0.46338]
[1754790083551,1.2133,4315.6,4315.0,1.03342]
[1754790083849,1.2133,4315.7,4314.7,3.2078]
[1754790084053,4.23984949,4315.5,4314.8,1.5478]
[1754790084361,1.2133,4315.4,4315.1,0.9778]
[1754790084550,1.2133,4315.5,4315.2,0.407]
[1754790084754,0.5924,4315.5,4315.4,0.9778]
[1754790084952,2.98421109,4315.7,4315.5,1.5478]
[1754790085158,1.1435,4315.7,4314.8,1.5478]
[1754790085362,2.98421109,4315.5,4314.8,1.5478]
[1754790085552,4.12771109,4315.7,4314.8,1.5478]
[1754790085753,2.98421109,4315.6,4314.9,0.9778]
[1754790085954,1.2133,4316.0,4315.3,3.2078]
[1754790086163,1.2133,4315.8,4315.1,0.9778]
[1754790086364,1.2133,4315.5,4315.2,0.407]
[1754790086659,0.5924,4315.4,4315.3,0.9778]
[1754790087060,0.5924,4315.4,4315.3,1.5478]
[1754790087461,0.5924,4315.8,4315.4,0.9778]
[1754790087662,3.2078,4316.1,4315.7,0.46335]
[1754790087856,0.6209,4316.4,4315.9,3.2078]
[1754790088060,0.5924,4316.8,4316.6,1.44105]
[1754790088266,3.2078,4316.9,4316.0,1.5478]
[1754790088465,0.46325,4316.6,4316.0,1.5478]
[1754790088765,1.67654,4316.7,4316.0,1.5478]
[1754790089057,3.2078,4316.9,4315.9,3.2078]
[1754790089058,3.05666983,4316.6,4316.1,0.46331]
[1754790089260,3.05666983,4316.6,4316.5,2.01106]
[1754790089465,3.2078,4316.9,4316.7,0.46324]
[1754790089758,0.5924,4317.5,4316.9,1.5478]
[1754790089958,0.5924,4317.5,4317.2,0.46318]
[1754790090159,0.5924,4317.5,4317.4,1.5478]
[1754790090559,3.2078,4317.7,4317.4,1.5478]
[1754790090759,1.2133,4317.8,4317.6,0.9778]
[1754790090959,1.2133,4318.3,4317.7,0.9778]
[1754790091158,0.46308,4318.2,4317.7,0.9778]
[1754790091360,3.02561906,4318.2,4317.7,0.9778]
[1754790091560,1.2133,4317.9,4317.7,0.9778]
[1754790091760,1.2133,4317.9,4317.8,0.407]
[1754790092757,0.6622,4318.3,4317.8,1.5478]
[1754790092953,0.5924,4318.2,4317.4,3.2078]
[1754790093163,3.55293155,4318.2,4317.5,1.5478]
[1754790093361,0.5924,4318.2,4317.6,0.5708]
[1754790093662,2.96053155,4318.1,4317.9,2.01091]
[1754790093868,0.6209,4318.6,4318.1,0.46309]
[1754790094068,1.1435,4318.6,4318.4,1.5478]
[1754790094269,0.5924,4318.8,4318.5,0.46305]
[1754790094565,1.1435,4318.8,4318.0,3.2078]
[1754790094770,0.6622,4318.3,4317.6,0.5708]
[1754790095070,0.5258,4318.1,4317.6,1.03394]
[1754790095263,3.02621468,4318.2,4317.6,0.46314]
[1754790095468,0.5258,4317.9,4317.8,0.9215]
[1754790095771,1.0258,4317.9,4317.8,0.9215]
[1754790096062,0.5,4317.9,4317.8,0.9215]
[1754790096272,0.5,4317.9,4317.5,3.67095]
[1754790096467,0.5,4317.9,4317.0,3.2078]
[1754790096767,0.5258,4317.8,4317.2,0.46319]
[1754790097167,0.5,4317.9,4317.5,0.46315]
[1754790097368,0.5258,4317.6,4317.5,1.38465]
[1754790097564,0.5258,4317.6,4317.5,0.9215]
[1754790098169,1.1615,4317.6,4317.1,0.5486]
[1754790098370,1.1615,4317.5,4317.2,0.9215]
[1754790098568,0.46312,4317.8,4317.2,0.9215]
[1754790098767,0.46318,4317.3,4316.7,1.38474]
[1754790099072,1.1615,4317.3,4316.7,1.38474]
[1754790099967,1.567,4317.1,4316.4,3.67107]
[1754790100270,6.27293415,4317.4,4317.1,0.5268]
[1754790100566,1.1615,4317.6,4317.0,1.53861]
[1754790100772,1.1615,4317.6,4317.0,1.01181]
[1754790100974,1.1615,4317.6,4317.2,1.4701]
[1754790101170,1.1038,4317.6,4317.4,1.4701]
[1754790101370,0.5258,4317.8,4317.6,0.9215]
[1754790101571,0.5258,4317.8,4317.7,0.9215]
[1754790101772,0.5258,4317.8,4317.7,1.4701]
[1754790102071,0.5,4317.9,4317.8,0.46312]
[1754790102373,0.5,4317.9,4317.4,3.2078]
[1754790102374,0.5,4317.9,4317.4,0.46316]
[1754790102569,0.5,4317.9,4317.6,1.93324]
[1754790102770,0.0622,4317.9,4317.8,1.0754]
[1754790103072,0.0622,4317.9,4317.8,1.4701]
[1754790103374,3.2078,4318.5,4318.3,1.4701]
[1754790103575,3.2078,4318.5,4318.4,1.4701]
[1754790104274,1.24121688,4319.9,4318.4,1.4701]
[1754790104275,3.6708,4319.0,4318.4,0.46305]
[1754790104475,1.5221,4318.8,4318.6,0.9215]
[1754790104677,0.46301,4318.8,4318.6,0.9215]
[1754790105075,4.55564413,4318.7,4318.1,0.5268]
[1754790105269,4.55564413,4318.7,4317.8,0.96312]
[1754790105270,0.46304,4318.6,4317.8,0.96312]
[1754790105477,0.46306,4318.4,4317.8,0.96312]
[1754790105774,2.0221,4317.9,4317.8,0.5]
[1754790108772,2.0221,4317.9,4317.8,1.4215]
[1754790108976,1.0258,4317.9,4317.8,1.9701]
[1754790109772,0.5,4317.9,4317.8,1.9701]
[1754790110678,0.5258,4318.9,4317.9,1.4701]
[1754790110882,0.5258,4318.9,4318.3,1.93317]
[1754790111881,1.47870347,4319.1,4318.8,1.4701]
[1754790112081,0.9441,4319.1,4318.9,1.4701]
[1754790112276,2.94793875,4319.0,4318.9,0.5486]
[1754790112676,1.40708,4319.1,4319.0,0.5486]
[1754790112877,0.9441,4319.1,4319.0,1.0754]
[1754790113073,0.5258,4319.1,4319.0,1.4701]
[1754790113270,0.578,4319.3,4319.0,0.5486]
[1754790113474,0.9441,4319.2,4319.1,0.9215]
[1754790113676,3.97510043,4319.2,4319.1,0.9215]
[1754790114176,3.03100043,4319.2,4319.1,1.4701]
[1754790114875,3.03100043,4319.2,4319.1,1.93308]
[1754790115079,0.46294,4319.5,4319.0,0.46299]
[1754790115278,0.9441,4319.4,4319.2,1.4701]
[1754790115484,1.5221,4319.4,4319.3,0.5268]
[1754790115879,1.98505,4319.4,4319.3,0.5268]
[1754790116183,1.98505,4319.4,4319.2,0.3947]
[1754790116376,1.5221,4319.3,4318.9,0.9898]
[1754790116583,0.9441,4319.2,4319.1,0.5268]
[1754790116782,0.9441,4319.2,4319.1,0.9215]
[1754790117779,1.5221,4319.2,4319.1,0.9215]
[1754790117978,1.5221,4319.2,4319.1,1.38448]
[1754790118182,1.5221,4319.2,4319.1,0.9215]
[1754790118883,1.5221,4319.2,4319.1,1.4701]
[1754790120381,0.5258,4319.5,4318.9,0.463]
[1754790120581,3.2078,4319.7,4318.8,3.2078]
[1754790120582,0.9441,4319.4,4319.1,0.46297]
[1754790120783,0.5258,4320.6,4319.8,1.4701]
[1754790121084,0.53532812,4320.8,4320.7,1.4701]
[1754790121283,0.53532812,4321.6,4320.7,1.15702]
[1754790121485,3.2078,4321.7,4321.2,1.4701]
[1754790121678,3.2078,4321.7,4321.1,3.2078]
[1754790121679,3.6705,4321.7,4321.3,0.9215]
[1754790121881,2.96288307,4321.6,4321.1,3.2078]
[1754790122086,1.5221,4321.4,4321.1,3.7346]
[1754790122282,1.5221,4321.2,4321.1,3.7346]
[1754790122587,1.5221,4321.0,4320.9,0.5268]
[1754790122785,3.7336,4321.7,4321.0,0.9215]
[1754790122977,0.46273,4321.5,4321.3,0.9215]
[1754790123284,0.46275,4321.3,4320.8,0.9215]
[1754790123489,0.46275,4321.3,4320.6,0.46282]
[1754790123680,0.46275,4321.3,4320.7,1.4701]
[1754790124079,0.46276,4321.2,4320.7,0.5486]
[1754790124284,1.5221,4321.0,4320.1,0.5268]
[1754790124590,2.9462452,4320.9,4320.4,0.5268]
[1754790124784,2.9462452,4320.9,4320.6,0.46282]
[1754790124980,0.46275,4321.3,4320.6,0.46282]
[1754790125185,3.2078,4321.5,4320.9,1.4914]
[1754790125186,0.46272,4321.5,4320.9,1.4914]
[1754790125383,0.46272,4321.6,4321.0,0.46278]
[1754790125588,0.9761,4321.8,4321.1,0.9648]
[1754790125779,1.4388,4321.8,4321.3,0.9648]
[1754790125985,1.4388,4321.8,4321.5,1.4914]
[1754790126185,3.2078,4322.0,4321.1,3.2078]
[1754790126186,0.9761,4322.3,4321.7,1.0863]
[1754790126380,0.46269,4321.9,4321.2,1.4914]
[1754790126886,1.03119,4321.9,4321.2,1.4914]
[1754790127088,0.5685,4321.9,4321.5,0.46272]
[1754790127287,0.9761,4321.8,4321.5,0.46272]
[1754790127487,0.87024,4322.3,4321.7,0.4627]
[1754790128189,0.46265,4322.2,4321.6,0.46271]
[1754790128484,1.03115,4322.2,4322.1,0.5597]
[1754790128690,0.46263,4322.4,4321.8,0.46269]
[1754790128991,1.43873,4322.4,4322.1,1.3648]
[1754790129287,0.87023,4322.4,4322.2,0.2785]
[1754790129591,0.87023,4322.4,4322.3,0.5597]
[1754790129886,0.9761,4322.4,4322.3,1.3648]
[1754790130188,0.9761,4322.7,4322.3,0.46264]
[1754790130485,0.5304,4323.1,4322.6,0.46261]
[1754790130684,0.5685,4323.1,4322.8,1.82739]
[1754790130986,0.9761,4323.4,4323.3,0.8382]
[1754790131189,0.5685,4323.4,4323.3,1.3648]
[1754790131882,3.2078,4323.7,4323.4,1.3648]
[1754790132084,3.2078,4323.7,4323.2,1.3648]
[1754790132287,3.2078,4323.7,4323.4,0.8382]
[1754790132483,4.1839,4323.7,4323.6,0.5597]
[1754790132788,3.2078,4323.7,4323.6,1.8273]
[1754790133185,0.46247,4323.9,4323.6,0.5597]
[1754790133390,1.5065,4323.7,4323.6,0.5597]
[1754790133584,1.969,4323.6,4323.3,0.8382]
[1754790133790,0.9761,4323.4,4323.3,0.5597]
[1754790134086,0.46248,4323.8,4323.2,1.3648]
[1754790134289,3.2078,4323.9,4323.4,0.5597]
[1754790134485,3.2078,4323.9,4323.3,1.3648]
[1754790134687,4.1839,4323.9,4323.2,1.3648]
[1754790134889,1.5065,4323.5,4322.7,1.3648]
[1754790135086,0.46254,4323.2,4322.7,1.3648]
[1754790135386,3.05762882,4323.1,4322.7,3.2078]
[1754790135586,3.05762882,4323.1,4323.0,1.3648]
[1754790135786,0.4076,4323.7,4323.1,0.5597]
[1754790136086,0.5685,4323.1,4322.9,1.0863]
[1754790136284,0.9761,4323.0,4322.9,0.5597]
[1754790136482,3.2078,4323.7,4322.9,0.5266]
[1754790136685,3.2078,4323.7,4323.0,0.5597]
[1754790136884,1.5065,4323.3,4323.0,0.5597]
[1754790137093,1.5065,4322.8,4322.7,0.5597]
[1754790137591,0.46254,4323.3,4322.6,3.2078]
[1754790137791,0.46254,4323.3,4322.8,1.3648]
[1754790137993,0.46252,4323.4,4323.0,0.8051]
[1754790138187,4.01260947,4323.6,4323.1,1.0863]
[1754790138388,0.9761,4323.6,4323.2,0.46254]
[1754790138588,1.5065,4323.5,4322.9,0.8051]
[1754790138792,0.46252,4323.4,4323.0,0.5597]
[1754790139092,0.9761,4323.2,4323.1,0.5597]
[1754790139394,0.9761,4322.7,4322.4,1.3648]
[1754790139689,0.4625,4323.6,4322.8,0.98919]
[1754790139891,0.8701,4323.6,4323.0,0.46256]
[1754790140485,0.46251,4323.5,4323.0,0.46256]
[1754790140686,1.5065,4323.4,4323.1,0.5597]
[1754790140887,1.5065,4323.3,4323.1,0.5597]
[1754790141091,1.5065,4323.2,4323.1,0.5597]
[1754790141883,1.5065,4323.1,4322.7,0.5]
[1754790142090,0.46255,4323.1,4322.7,0.5]
[1754790142289,1.96909,4322.8,4322.7,0.5]
[1754790142686,0.9761,4322.8,4322.7,0.7726]
[1754790142892,0.9761,4323.1,4322.8,1.3589]
[1754790143195,0.9761,4323.0,4322.9,0.8323]
[1754790143593,0.938,4322.8,4322.7,0.5]
[1754790143790,1.5065,4322.8,4322.7,0.5]
[1754790144604,4.56857316,4322.8,4322.7,0.0701]
[1754790144795,1.5065,4322.7,4321.7,0.5266]
[1754790144996,1.5065,4322.1,4321.8,0.5597]
[1754790145294,0.5685,4321.9,4321.8,0.4051]
[1754790145693,1.5065,4321.6,4321.5,3.2078]
[1754790145893,0.5685,4321.6,4321.5,5.16192]
[1754790146195,0.5685,4321.6,4321.5,4.6992]
[1754790146787,0.5,4322.8,4321.5,9.2078]
[1754790146987,0.5,4322.8,4321.3,1.15685]
[1754790146988,0.5,4322.8,4322.7,1.4914]
[1754790147297,0.5,4322.8,4322.7,1.9914]
[1754790149893,2.0065,4322.8,4322.7,0.5]
[1754790150194,8.64575252,4322.8,4322.7,0.5]
[1754790150399,1.5065,4322.3,4321.7,1.0224]
[1754790150893,0.46261,4322.6,4321.9,0.46268]
[1754790151094,1.5065,4322.5,4321.9,0.46268]
[1754790151298,0.938,4322.3,4321.9,0.46268]
[1754790151495,0.46262,4322.5,4321.9,0.9648]
[1754790151693,0.46262,4322.5,4321.8,0.98929]
[1754790151694,0.46264,4322.3,4321.7,1.0224]
[1754790151888,1.5065,4322.0,4321.8,0.9648]
[1754790152099,1.5065,4322.0,4321.5,3.2078]
[1754790152100,0.5685,4321.7,4321.6,0.5597]
[1754790152300,1.5065,4321.7,4321.6,0.5597]
[1754790152496,1.5065,4321.7,4321.6,0.9648]
[1754790152697,3.2078,4322.3,4321.5,3.2078]
[1754790152998,1.5065,4321.6,4321.5,3.2078]
[1754790153196,0.53425841,4322.1,4321.4,0.46272]
[1754790153392,0.938,4322.1,4321.8,0.4051]
[1754790153594,0.5685,4322.0,4321.9,1.4914]
[1754790154293,0.99690841,4322.2,4321.9,1.4914]
[1754790154496,0.5685,4322.0,4321.9,0.5266]
[1754790154696,0.5685,4322.0,4321.6,0.5266]
[1754790154697,1.5065,4321.9,4321.6,0.5266]
[1754790154896,1.5065,4321.5,4321.1,0.98937]
[1754790155097,0.9476,4321.4,4321.3,0.9853]
[1754790155495,0.5611,4321.8,4321.4,0.46274]
[1754790155696,2.0005,4321.7,4321.6,0.5]
[1754790156202,0.5,4321.7,4321.6,2.0043]
[1754790157909,1.4394,4321.7,4321.6,1.4853]
[1754790158203,2.0005,4321.7,4321.6,1.4853]
[1754790159104,2.0005,4321.7,4321.6,0.5]
[1754790159501,1.4394,4321.7,4321.6,1.4853]
[1754790159802,0.5,4321.7,4321.6,2.0043]
[1754790160399,2.0005,4321.7,4321.6,1.4853]
[1754790161006,2.0005,4321.7,4321.6,0.5]
[1754790161801,11.02689781,4321.7,4321.6,0.5]
[1754790162002,5.56115622,4321.7,4321.6,0.5]
[1754790165507,5.56115622,4321.7,4321.6,0.02602]
[1754790165711,1.9633,4320.8,4320.5,0.519]
[1754790165908,1.5005,4320.8,4320.7,0.519]
[1754790166110,0.46277,4321.1,4320.7,1.5043]
[1754790166405,3.05389887,4321.0,4320.9,1.5043]
[1754790166611,0.46279,4320.9,4320.6,0.519]
[1754790166814,0.9394,4320.8,4320.7,0.5697]
[1754790167119,0.9394,4320.8,4320.7,1.9677]
[1754790167120,2.4987,4320.8,4320.7,1.9677]
[1754790168726,2.4987,4320.8,4320.7,1.5521]
[1754790169427,2.4987,4320.8,4320.7,1.9677]
[1754790170219,1.5593,4320.8,4320.4,3.67064]
[1754790170418,0.5529,4320.6,4320.4,4.65594]
[1754790170627,0.9129,4320.5,4320.4,6.15734]
[1754790170820,0.9129,4320.5,4320.4,5.6945]
[1754790171025,2.4987,4320.5,4320.4,4.1902]
[1754790171224,0.36,4320.2,4320.1,0.9853]
[1754790171425,2.4987,4320.2,4320.1,1.5521]
[1754790171929,2.4987,4320.2,4320.1,1.9677]
[1754790172126,2.4987,4320.2,4320.1,0.3614]
[1754790172432,2.4987,4320.0,4319.9,5.1755]
[1754790172832,0.46285,4320.4,4319.9,4.7092]
[1754790173133,0.36,4320.1,4319.9,3.67069]
[1754790173432,2.4987,4320.0,4319.9,5.1755]
[1754790174427,0.82292,4319.7,4319.6,0.777]
[1754790174627,0.9982,4319.0,4318.9,0.73289]
[1754790174828,2.4987,4319.0,4318.9,2.43069]
[1754790175023,1.114,4320.1,4319.6,2.4867]
[1754790175232,0.36,4320.2,4320.1,2.4867]
[1754790175733,2.4987,4320.2,4320.1,2.4867]
[1754790175935,0.36,4319.5,4319.4,0.9824]
[1754790176124,2.4987,4319.5,4319.4,0.9824]
[1754790176324,2.4987,4319.5,4319.4,0.2699]
[1754790176527,2.4987,4318.9,4318.8,3.2078]
[1754790176828,2.4987,4318.9,4318.8,3.8288]
[1754790177029,2.4987,4318.9,4318.8,1.9677]
[1754790177225,0.9129,4318.9,4318.8,2.4867]
[1754790177630,2.4987,4318.9,4318.8,1.9677]
[1754790177838,2.4987,4318.9,4318.8,1.5521]
[1754790178034,2.4987,4318.9,4318.8,0.9824]
[1754790178235,0.6665,4318.9,4318.8,2.94971]
[1754790178532,0.36,4319.0,4318.9,2.4867]
[1754790178733,0.9129,4319.0,4318.9,2.4867]
[1754790178928,0.36,4319.0,4318.9,2.4867]
[1754790179134,0.36,4319.1,4319.0,2.1356]
[1754790179334,2.4987,4319.1,4319.0,1.9677]
[1754790179637,0.9129,4319.1,4319.0,2.4867]
[1754790179833,3.5678,4319.4,4319.3,1.398]
[1754790180039,0.9129,4319.4,4319.3,2.4867]
[1754790180337,2.2187,4319.4,4319.3,2.4867]
[1754790180538,2.4987,4319.4,4319.3,2.4867]
[1754790181232,2.96165,4319.4,4319.3,2.4867]
[1754790181434,2.96165,4319.4,4318.6,2.94973]
[1754790181435,1.2711,4318.7,4318.6,2.94973]
[1754790181634,1.2711,4318.7,4318.6,2.4867]
[1754790181831,0.9982,4318.7,4318.3,3.2078]
[1754790182030,2.96175,4318.5,4318.4,0.9824]
[1754790182339,0.9982,4318.2,4318.1,1.9677]
[1754790182540,2.4987,4318.2,4318.1,1.9677]
[1754790182739,2.4987,4318.2,4318.1,2.4867]
[1754790182934,1.2711,4318.2,4318.1,2.4867]
[1754790183238,2.4987,4318.2,4318.1,1.9677]
[1754790183435,2.4987,4318.2,4318.1,0.2699]
[1754790183640,2.4987,4318.2,4317.6,1.9677]
[1754790183641,1.5593,4317.7,4317.6,1.9677]
[1754790183843,0.9982,4317.7,4317.6,2.4867]
[1754790184143,0.9982,4317.7,4317.3,0.8396]
[1754790184144,0.28,4317.4,4317.3,0.8396]
[1754790184335,2.4987,4317.3,4317.2,4.6058]
[1754790184641,2.4987,4317.3,4316.7,3.2078]
[1754790184933,2.4987,4317.2,4317.1,2.4867]
[1754790185139,0.8882,4317.3,4317.2,1.9044]
[1754790185334,2.4289,4317.3,4317.2,0.599]
[1754790185736,1.4976,4317.3,4317.2,2.4448]
[1754790185928,2.4289,4317.3,4317.2,1.9044]
[1754790186132,0.6949,4316.9,4316.8,1.3706]
[1754790186342,2.412,4316.9,4316.8,1.4816]
[1754790186739,5.92139855,4316.9,4316.7,3.2078]
[1754790186935,0.46324,4316.7,4316.2,3.2078]
[1754790187236,3.00631272,4316.6,4316.5,0.46326]
[1754790187441,0.5493,4317.1,4316.5,1.96026]
[1754790187637,0.382,4317.0,4316.5,0.46326]
[1754790187841,1.4595,4316.8,4316.7,0.5338]
[1754790188034,1.4595,4316.8,4316.6,0.4228]
[1754790188239,1.4595,4316.7,4316.3,0.46328]
[1754790188539,1.4595,4316.6,4316.2,3.2078]
[1754790188742,1.4595,4316.5,4316.2,3.2078]
[1754790188939,1.4595,4316.4,4316.2,3.2078]
[1754790189242,1.4595,4316.7,4316.2,3.2078]
[1754790189448,0.9525,4316.3,4316.2,3.2078]
[1754790189649,1.8838,4316.3,4316.2,3.5525]
[1754790189938,2.412,4316.3,4316.2,3.5525]
[1754790190342,3.05111479,4316.3,4316.2,5.6526]
[1754790190538,2.412,4317.0,4316.9,1.9044]
[1754790190932,2.412,4317.0,4316.2,3.2078]
[1754790190933,0.3431,4316.3,4316.2,3.2078]
[1754790191146,1.6262,4316.2,4316.1,1.9044]
[1754790191345,2.1544,4316.2,4316.1,2.4448]
[1754790191842,2.412,4316.2,4316.1,1.9044]
[1754790192040,2.412,4316.2,4316.1,2.4448]
[1754790192346,0.3431,4316.6,4316.5,2.4448]
[1754790192542,0.8713,4316.9,4316.8,1.41102]
[1754790192844,2.96017964,4317.0,4316.9,1.96021]
[1754790193039,1.4595,4317.1,4316.9,1.96021]
[1754790193040,0.5282,4317.1,4316.9,1.96021]
[1754790193234,0.5282,4317.1,4317.0,1.497]
[1754790193737,1.4595,4317.1,4317.0,0.9566]
[1754790194134,0.5282,4317.1,4317.0,1.497]
[1754790194738,1.4595,4317.1,4317.0,0.9566]
[1754790194939,1.4595,4317.1,4316.8,0.46322]
[1754790195133,0.5282,4317.1,4316.6,0.46324]
[1754790195341,3.54318145,4317.0,4316.2,3.2078]
[1754790195542,0.5282,4316.9,4316.8,0.46323]
[1754790195846,0.5282,4316.9,4316.8,0.5404]
[1754790196235,0.5282,4316.9,4316.8,1.497]
[1754790197043,2.412,4316.9,4316.8,1.9044]
[1754790197434,2.412,4316.9,4316.2,3.2078]
[1754790197435,2.412,4316.6,4316.2,3.2078]
[1754790197636,2.412,4316.2,4316.1,0.9566]
[1754790197834,0.9102,4316.1,4315.9,0.5338]
[1754790198036,1.4595,4316.0,4315.9,0.5338]
[1754790198239,0.46329,4316.2,4315.7,3.7416]
[1754790198441,0.9313,4315.9,4315.8,0.9566]
[1754790199047,1.4595,4315.9,4315.8,0.9566]
[1754790199243,1.4595,4316.3,4315.9,0.46332]
[1754790199441,0.5282,4316.3,4316.2,1.497]
[1754790199634,2.96996887,4316.3,4316.0,0.46331]
[1754790199840,1.4595,4316.2,4316.1,1.497]
[1754790200146,0.5282,4316.2,4316.1,1.497]
[1754790200940,0.5282,4316.2,4315.7,3.2078]
[1754790201139,1.4595,4316.0,4315.8,0.9566]
[1754790201342,0.382,4316.0,4315.9,0.4228]
[1754790201541,0.382,4316.0,4315.9,0.9566]
[1754790201840,1.4595,4316.0,4315.9,0.9566]
[1754790202040,2.1544,4316.0,4315.9,1.9044]
[1754790202447,2.412,4316.0,4315.9,1.9044]
[1754790203444,2.412,4315.9,4315.8,1.83393]
[1754790203640,2.412,4315.9,4315.8,2.36773]
[1754790203845,1.8627,4315.9,4315.8,2.90813]
[1754790204547,1.8838,4316.2,4316.1,1.3706]
[1754790204752,1.8838,4316.2,4316.1,1.9044]
[1754790204943,2.412,4316.2,4316.1,2.4448]
[1754790205445,2.412,4316.2,4316.1,0.599]
[1754790205851,2.412,4315.8,4315.7,3.9959]
[1754790206144,2.87533,4315.8,4315.7,1.9044]
[1754790206348,2.87533,4315.8,4315.7,0.599]
[1754790206545,0.9525,4315.5,4315.3,0.4228]
[1754790206749,2.412,4315.3,4315.2,4.5784]
[1754790206949,4.36597,4316.5,4314.9,1.9044]
[1754790206950,1.8838,4315.0,4314.9,1.9044]
[1754790207149,3.0112313,4315.3,4315.0,0.46342]
[1754790207352,1.8026,4315.3,4315.2,1.9044]
[1754790207540,3.05657127,4315.5,4315.3,0.46338]
[1754790207740,3.2078,4316.0,4315.9,0.5404]
[1754790207741,0.3431,4316.0,4315.9,0.5404]
[1754790207944,0.8713,4316.0,4315.9,2.4448]
[1754790208144,1.6051,4316.0,4315.9,2.4448]
[1754790208749,1.2231,4316.0,4315.9,2.4448]
[1754790208950,1.8838,4316.3,4316.2,0.9478]
[1754790209245,1.8838,4316.3,4316.2,1.9044]
[1754790209449,2.412,4316.3,4316.2,1.9044]
[1754790209855,1.8627,4316.3,4316.2,1.9044]
[1754790210454,2.412,4316.3,4316.2,1.9044]
[1754790210752,2.412,4316.3,4316.2,2.4448]
[1754790210955,0.5282,4317.2,4316.8,0.9478]
[1754790211251,0.5282,4317.2,4316.8,2.4448]
[1754790211451,1.3713,4316.9,4316.8,2.4448]
[1754790211754,0.5,4316.9,4316.8,2.4448]
[1754790212146,1.4525,4316.9,4316.8,0.599]
[1754790212346,0.9525,4316.6,4316.5,0.5338]
[1754790212548,2.412,4316.6,4316.5,0.5338]
[1754790212748,0.46326,4316.5,4316.2,0.9566]
[1754790213050,1.4595,4316.3,4315.8,1.00372]
[1754790213251,0.53509316,4316.5,4316.0,0.46331]
[1754790213453,1.4595,4316.1,4315.7,4.62774]
[1754790213656,1.4595,4316.0,4315.7,4.62774]
[1754790213849,3.02609992,4316.0,4315.7,4.1644]
[1754790214050,1.4595,4315.8,4315.7,3.2078]
[1754790214355,1.4595,4316.1,4315.5,0.9566]
[1754790214555,0.53509316,4316.1,4315.6,0.15332279]
[1754790214758,3.05472008,4316.0,4315.5,0.9566]
[1754790215058,0.53509316,4316.2,4315.5,0.9566]
[1754790215258,1.4484,4315.6,4315.5,0.9566]
[1754790216044,1.4479,4315.2,4315.1,3.2078]
[1754790216250,1.4479,4315.2,4314.7,0.46345]
[1754790216560,0.529,4315.0,4314.9,0.4135]
[1754790217154,1.4479,4315.3,4314.7,0.87695]
[1754790217355,1.4479,4315.3,4314.7,1.41595]
[1754790217557,4.47942697,4315.3,4314.7,1.41595]
[1754790217950,3.03152697,4315.3,4314.8,0.46344]
[1754790218150,1.4479,4315.2,4315.0,0.46342]
[1754790218354,1.4479,4315.1,4315.0,0.9525]
[1754790218748,1.38502,4315.0,4314.6,3.2078]
[1754790218958,1.4479,4314.8,4314.6,3.2078]